bitfinex/quotes_ETHUSD_20250123
["timestamp","ask_amount","ask_price","bid_price","bid_amount"]
[1737606273137,3.11681,3208.4,3208.0,35.8291]
[1737606273352,3.11705,3208.2,3208.0,0.8291]
[1737606273545,3.11681,3208.4,3208.0,0.8291]
[1737606275030,3.11694,3208.3,3207.8,0.01]
[1737606275230,0.623301,3208.7,3207.8,0.01]
[1737606275411,3.11725,3208.0,3207.8,0.01]
[1737606276436,0.7837,3208.8,3207.8,0.01]
[1737606276638,3.1173,3207.9,3207.8,0.01]
[1737606278618,3.11711,3208.1,3207.8,0.01]
[1737606278819,3.11675,3208.5,3207.8,3.12739]
[1737606279015,3.11662,3208.6,3208.0,3.1172]
[1737606279252,3.11636,3208.9,3208.2,0.7511]
[1737606279456,3.11672,3208.5,3208.3,35.0]
[1737606279656,3.11707,3208.2,3207.9,0.7511]
[1737606279863,3.428777,3208.2,3207.9,0.7511]
[1737606280034,3.11707,3208.2,3207.9,0.7511]
[1737606280234,3.11683,3208.4,3207.9,0.7511]
[1737606280462,3.11662,3208.7,3207.9,3.8684]
[1737606280655,3.11672,3208.5,3207.9,3.8684]
[1737606280837,3.11662,3208.7,3207.9,3.86834]
[1737606281029,3.11662,3208.6,3208.0,3.14834088]
[1737606281229,3.11662,3208.6,3208.0,3.14833888]
[1737606281451,3.11674,3208.5,3207.9,0.7511]
[1737606281668,3.11645,3208.8,3208.0,3.11712]
[1737606281930,3.11645,3208.8,3208.2,3.11698]
[1737606282476,3.11645,3208.8,3208.0,3.11712]
[1737606282676,3.11668,3208.6,3207.9,0.7511]
[1737606282855,3.11691,3208.3,3207.9,0.7511]
[1737606287158,3.11672,3208.5,3207.9,0.7511]
[1737606287329,3.11689,3208.4,3207.9,0.7511]
[1737606287654,0.787,3209.0,3207.9,0.7511]
[1737606287969,3.11699,3208.3,3207.9,0.7511]
[1737606288262,3.11666,3208.6,3207.9,0.7511]
[1737606288463,3.11666,3208.6,3208.1,3.11709]
[1737606288767,3.11666,3208.6,3208.1,0.03116785]
[1737606288966,3.11673,3208.5,3207.9,0.7511]
[1737606290045,3.11683,3208.4,3207.9,0.7511]
[1737606290374,3.11668,3208.6,3208.0,3.11718]
[1737606291248,3.11668,3208.6,3208.1,0.03116784]
[1737606292569,3.11643,3208.8,3208.2,3.11693]
[1737606293433,3.11643,3208.8,3208.1,0.03116784]
[1737606293640,3.11656,3208.7,3208.1,3.14821784]
[1737606293970,3.11643,3208.8,3208.1,3.53814962]
[1737606294138,3.11662,3208.6,3208.0,3.11714]
[1737606294340,3.11662,3208.6,3208.1,0.03116783]
[1737606295147,3.11662,3208.6,3208.1,3.14823783]
[1737606295370,3.11662,3208.6,3208.1,0.03116783]
[1737606295569,3.11662,3208.6,3208.1,3.14823783]
[1737606295868,3.11643,3208.8,3208.1,0.73281561]
[1737606296070,3.11643,3208.8,3208.2,3.117]
[1737606296780,3.11641,3208.9,3208.3,0.8056]
[1737606297275,3.11624,3209.0,3208.3,0.8056]
[1737606297570,3.11624,3209.0,3208.3,3.9225]
[1737606297769,3.11633,3208.9,3208.3,39.69972256]
[1737606298076,3.11624,3209.0,3208.3,36.58282256]
[1737606298077,3.11643,3208.8,3208.3,36.58282256]
[1737606298271,3.11643,3208.8,3208.0,3.92276]
[1737606298272,3.11665,3208.6,3208.0,3.92276]
[1737606299242,3.1167,3208.6,3208.0,0.8056]
[1737606299442,3.11672,3208.5,3208.0,3.92277]
[1737606300373,3.11697,3208.3,3208.0,0.8056]
[1737606300554,3.11703,3208.2,3208.0,0.8056]
[1737606300881,3.11703,3208.2,3207.8,0.01]
[1737606301243,3.11697,3208.3,3207.8,0.01]
[1737606301760,3.11675,3208.5,3207.8,3.55498678]
[1737606301961,6.23356,3208.5,3207.8,3.52381506]
[1737606302161,6.23356,3208.5,3207.8,3.55498539]
[1737606302363,3.1169,3208.4,3207.8,0.43759539]
[1737606302570,3.1169,3208.4,3207.8,3.55492539]
[1737606302993,3.11666,3208.6,3207.9,3.55328254]
[1737606303206,3.11685,3208.4,3207.8,0.40642506]
[1737606303386,3.11666,3208.6,3207.8,0.43759319]
[1737606303547,3.11633,3208.9,3207.8,0.40642506]
[1737606303747,3.11703,3208.2,3207.8,0.01]
[1737606303970,3.11682,3208.4,3207.8,0.01]
[1737606305121,3.11666,3208.6,3208.0,3.11719]
[1737606305417,3.90575,3209.0,3208.1,0.83676821]
[1737606305603,3.11637,3208.9,3208.2,3.11698]
[1737606305768,3.11652,3208.8,3208.2,3.82406882]
[1737606306770,3.11658,3208.7,3208.2,0.70708882]
[1737606306971,3.11652,3208.8,3208.1,0.8056]
[1737606307326,3.11664,3208.6,3208.1,0.8056]
[1737606309429,3.11673,3208.5,3208.1,0.8056]
[1737606309889,3.11664,3208.6,3208.1,0.8056]
[1737606310092,3.11619,3209.1,3208.4,3.11673]
[1737606310295,3.90548,3209.3,3208.6,0.779]
[1737606310502,3.11614,3209.1,3208.6,0.779]
[1737606310702,6.23237,3209.1,3208.6,0.779]
[1737606310957,3.11631,3209.0,3208.6,0.779]
[1737606311099,3.11639,3208.9,3208.6,0.779]
[1737606311304,3.11614,3209.1,3208.6,0.779]
[1737606312295,3.11604,3209.3,3208.6,3.92676494]
[1737606312495,3.11611,3209.2,3208.6,4.63112279]
[1737606312693,3.11613,3209.1,3208.7,35.0]
[1737606313095,3.11624,3209.0,3208.6,0.779]
[1737606314494,3.11606,3209.2,3208.6,0.779]
[1737606314695,3.11615,3209.1,3208.6,0.81016291]
[1737606314896,3.11615,3209.1,3208.6,0.779]
[1737606316009,3.11636,3208.9,3208.6,0.779]
[1737606316211,3.11615,3209.1,3208.6,0.779]
[1737606317033,3.11607,3209.2,3208.6,3.8956]
[1737606317242,3.11607,3209.2,3208.6,0.779]
[1737606317447,3.11621,3209.1,3208.6,0.779]
[1737606318444,3.11578,3209.5,3208.8,0.779]
[1737606318944,3.1159,3209.4,3208.8,0.779]
[1737606319544,3.1159,3209.4,3208.8,3.89541]
[1737606319873,3.11491,3210.4,3208.7,3.11643]
[1737606319874,3.11486,3210.5,3209.9,0.7934]
[1737606320031,3.11486,3210.5,3209.9,0.82455025]
[1737606320458,3.1146,3210.7,3210.0,3.11524]
[1737606320661,3.1146,3210.7,3210.1,3.11515]
[1737606321019,3.1146,3210.7,3209.9,36.48283896]
[1737606321156,3.0,3211.5,3210.3,0.7934]
[1737606321157,3.11441,3210.9,3210.3,0.7934]
[1737606321731,3.11441,3210.9,3210.3,0.8245468]
[1737606321935,3.11459,3210.7,3210.3,0.7934]
[1737606322728,3.11441,3210.9,3210.3,1.184255]
[1737606323047,3.11441,3210.9,3210.3,3.90836]
[1737606323226,3.11441,3210.9,3210.3,0.7934]
[1737606323648,3.11441,3210.9,3210.3,3.90835]
[1737606323852,3.11429,3211.0,3210.3,0.7934]
[1737606324036,3.11449,3210.8,3210.3,0.7934]
[1737606324642,3.11467,3210.7,3210.3,0.7934]
[1737606325065,3.11449,3210.8,3210.3,0.7934]
[1737606325274,3.11461,3210.7,3210.3,0.7934]
[1737606325483,3.11449,3210.8,3210.3,0.7934]
[1737606325650,3.11449,3210.8,3210.3,1.21540251]
[1737606325984,3.11417,3211.2,3210.3,1.21540251]
[1737606326150,3.11417,3211.2,3210.5,3.11472]
[1737606326345,3.11408,3211.3,3210.5,3.11472]
[1737606326551,3.11408,3211.3,3210.5,3.14586228]
[1737606326751,3.11408,3211.3,3210.6,3.11461]
[1737606327150,3.11408,3211.3,3210.5,3.11472]
[1737606327372,3.11408,3211.3,3210.5,3.97920537]
[1737606327674,3.1139,3211.5,3210.9,3.11437]
[1737606327975,3.1139,3211.5,3210.7,0.7934]
[1737606328173,3.11419,3211.2,3210.7,0.7934]
[1737606328381,3.1146,3210.7,3210.1,3.9085]
[1737606328557,3.11439,3210.9,3210.2,3.11498]
[1737606328739,3.11439,3210.9,3210.3,3.817238]
[1737606328939,3.11446,3210.9,3210.4,0.7934]
[1737606329874,3.11446,3210.9,3210.4,0.82454529]
[1737606330075,3.11423,3211.1,3210.6,3.11468]
[1737606330275,3.11411,3211.2,3210.6,3.11468]
[1737606330476,3.11376,3211.6,3210.8,0.7934]
[1737606331076,3.11397,3211.4,3210.8,3.9078]
[1737606331284,3.11403,3211.3,3210.8,0.7934]
[1737606331465,3.11403,3211.3,3210.9,35.0]
[1737606331848,3.11403,3211.3,3210.8,0.7934]
[1737606332050,3.11411,3211.2,3210.8,0.7934]
[1737606332272,3.11403,3211.3,3210.8,0.7934]
[1737606332664,3.11416,3211.2,3210.8,0.7934]
[1737606333808,3.1143,3211.0,3210.8,0.7934]
[1737606333955,3.1143,3211.0,3210.5,0.7934]
[1737606334863,3.11447,3210.9,3210.5,0.7934]
[1737606335048,3.11465,3210.7,3210.2,0.8129]
[1737606335252,3.11468,3210.6,3210.2,0.8129]
[1737606336180,3.11455,3210.8,3210.2,0.8129]
[1737606336690,3.11465,3210.7,3210.2,0.8129]
[1737606336912,3.11479,3210.5,3210.2,0.8129]
[1737606337190,3.11504,3210.3,3209.9,0.8129]
[1737606337482,3.11518,3210.1,3209.9,0.8129]
[1737606337888,3.11504,3210.3,3209.9,0.8129]
[1737606340955,3.11522,3210.1,3209.9,0.8129]
[1737606341154,3.11522,3210.1,3209.6,35.8129]
[1737606342691,3.11522,3210.1,3209.6,38.92855]
[1737606342860,3.11548,3209.8,3209.6,0.8129]
[1737606343188,3.11601,3209.3,3209.0,0.8129]
[1737606343398,3.11613,3209.1,3209.0,0.8129]
[1737606343559,3.11613,3209.1,3208.4,3.92965]
[1737606343889,3.11624,3209.0,3208.5,35.0]
[1737606345269,3.11597,3209.3,3208.5,35.0]
[1737606345571,3.1161,3209.2,3208.5,38.11671]
[1737606345788,3.1162,3209.1,3208.5,38.11671]
[1737606347194,3.1162,3209.1,3208.6,3.11661]
[1737606347395,3.11597,3209.3,3208.6,3.11661]
[1737606347598,3.11606,3209.2,3208.6,0.51963039]
[1737606347898,3.11606,3209.2,3208.7,35.0]
[1737606348066,3.11606,3209.2,3208.8,0.8129]
[1737606348267,3.11597,3209.3,3208.8,0.8129]
[1737606348536,3.11606,3209.2,3208.8,0.8129]
[1737606348669,3.11606,3209.2,3208.9,35.0]
[1737606349300,3.11606,3209.2,3208.8,0.8129]
[1737606349505,3.11605,3209.2,3208.8,0.8129]
[1737606349801,3.11614,3209.1,3208.9,35.0]
[1737606350590,3.11614,3209.1,3208.8,0.8129]
[1737606351212,3.11614,3209.1,3208.8,35.8129]
[1737606351583,3.11627,3209.0,3208.8,0.8129]
[1737606351786,3.11614,3209.1,3208.4,0.8129]
[1737606351992,3.11631,3209.0,3208.4,1.50132294]
[1737606352308,3.1164,3208.9,3208.4,1.50132294]
[1737606355225,3.11613,3209.1,3208.5,35.0]
[1737606355593,3.11624,3209.0,3208.5,35.0]
[1737606358127,3.11634,3208.9,3208.5,35.0]
[1737606358292,6.23257,3209.0,3208.5,35.0]
[1737606358497,3.11636,3208.9,3208.5,35.0]
[1737606358825,3.11636,3208.9,3208.4,1.50132294]
[1737606359004,3.11636,3208.9,3208.1,3.53375667]
[1737606359005,3.11669,3208.6,3208.1,1.22956667]
[1737606359204,3.11678,3208.5,3208.1,1.22956667]
[1737606359833,6.23314,3208.7,3208.1,1.22956667]
[1737606360141,3.1167,3208.6,3208.1,1.22956667]
[1737606360631,3.11654,3208.7,3208.1,1.22956667]
[1737606360929,3.11654,3208.7,3208.1,4.34659667]
[1737606361920,3.11654,3208.7,3208.1,1.22956667]
[1737606362322,3.1161,3209.2,3208.3,2.95444937]
[1737606362546,3.1161,3209.2,3208.7,0.8129]
[1737606363442,3.11569,3209.6,3208.7,4.633969]
[1737606363646,3.1158,3209.5,3208.9,3.11631]
[1737606363830,3.11569,3209.6,3208.9,3.11631]
[1737606364034,3.11569,3209.6,3209.0,3.11622]
[1737606364623,3.11569,3209.6,3209.1,0.7678]
[1737606364849,3.11547,3209.8,3209.1,3.88389]
[1737606365051,3.11547,3209.8,3209.1,4.56768394]
[1737606365275,0.8226,3210.3,3209.3,0.7678]
[1737606365451,3.11486,3210.5,3209.8,3.11544]
[1737606365633,3.1146,3210.7,3210.0,3.1152]
[1737606365956,3.1146,3210.7,3210.1,3.11509]
[1737606366184,3.93685,3211.1,3210.3,3.11495]
[1737606366386,3.11418,3211.2,3210.6,3.11465]
[1737606366601,0.62290443,3211.6,3210.7,6.06893937]
[1737606366852,3.1138,3211.6,3210.9,0.7678]
[1737606367050,0.622744,3211.5,3210.9,3.88218]
[1737606367286,3.11342,3211.9,3211.3,3.11395]
[1737606367592,3.1133,3212.1,3211.3,3.11392]
[1737606367761,3.11333,3212.0,3211.3,3.11392]
[1737606367974,3.11324,3212.1,3211.1,3.11419]
[1737606368290,3.11324,3212.1,3210.9,3.88217]
[1737606368291,3.11377,3211.6,3210.9,0.7678]
[1737606368455,3.11391,3211.4,3210.9,0.7678]
[1737606368654,0.311377,3211.5,3210.9,0.7678]
[1737606368849,3.1139,3211.4,3210.9,0.7678]
[1737606370610,0.7592,3212.0,3210.9,0.7678]
[1737606370611,3.11354,3211.8,3210.9,3.88218]
[1737606370885,3.11313,3212.2,3211.5,3.11374]
[1737606371459,3.11313,3212.2,3211.6,0.03113348]
[1737606371659,3.11313,3212.2,3211.5,3.11374]
[1737606371895,3.11328,3212.1,3211.3,3.11394]
[1737606372190,3.11373,3211.6,3211.2,0.8174]
[1737606372567,0.7592,3212.0,3211.2,0.8174]
[1737606372780,3.1137,3211.7,3211.2,0.8174]
[1737606372980,3.11382,3211.5,3211.2,0.8174]
[1737606373185,3.11382,3211.5,3210.7,6.06902937]
[1737606373186,3.11421,3211.1,3210.8,0.8174]
[1737606373490,3.11434,3211.0,3210.3,3.11495]
[1737606373697,3.11434,3211.0,3210.4,0.8174]
[1737606374000,0.311382,3211.5,3210.4,0.8174]
[1737606374183,3.11355,3211.8,3210.9,0.8174]
[1737606374355,3.11377,3211.6,3210.9,0.8174]
[1737606374561,3.11361,3211.7,3210.9,3.93177]
[1737606375062,3.11343,3211.9,3210.9,3.93177]
[1737606375259,3.500853,3211.8,3211.0,3.11428]
[1737606375461,3.11353,3211.8,3211.2,0.8174]
[1737606375662,3.11343,3211.9,3211.3,3.11399]
[1737606376093,3.11352,3211.8,3211.2,0.8174]
[1737606376294,3.11304,3212.3,3211.3,2.98558664]
[1737606376601,3.11304,3212.3,3211.7,0.8174]
[1737606376981,3.11313,3212.2,3211.7,0.8174]
[1737606377186,3.11323,3212.1,3211.7,0.8174]
[1737606378109,3.11294,3212.4,3211.7,3.93101]
[1737606378680,0.2488,3212.6,3211.7,0.8174]
[1737606378913,3.11284,3212.5,3211.7,0.8174]
[1737606379114,3.1135,3211.9,3211.7,0.8174]
[1737606379805,3.11332,3212.1,3211.7,0.8174]
[1737606380472,3.36159,3212.6,3211.8,0.03113465]
[1737606380473,0.2488,3212.6,3211.8,0.03113465]
[1737606380677,3.11297,3212.4,3211.7,3.96210076]
[1737606380985,3.11297,3212.4,3211.8,0.69165501]
[1737606381186,3.36162,3212.6,3211.9,0.03113078]
[1737606381494,3.36162,3212.6,3211.9,3.14455078]
[1737606381700,3.11285,3212.5,3211.9,3.14455078]
[1737606381875,3.11285,3212.5,3211.9,0.03113078]
[1737606382076,3.11294,3212.4,3211.7,3.93097]
[1737606382276,3.11334,3212.0,3211.7,0.8174]
[1737606382508,0.647447,3212.5,3211.7,0.8174]
[1737606382687,0.2488,3212.6,3211.8,0.03113088]
[1737606382872,0.2488,3212.6,3212.2,6.06748937]
[1737606383077,0.2488,3212.6,3212.5,3.11284]
[1737606383311,0.2488,3212.6,3212.5,6.06728937]
[1737606383813,0.2488,3212.6,3212.5,3.11284]
[1737606384009,0.2488,3212.6,3212.5,4.016991]
[1737606384210,0.2488,3212.6,3212.5,4.832791]
[1737606386084,0.2488,3212.6,3212.5,3.92864]
[1737606386978,0.2488,3212.6,3212.5,0.8158]
[1737606388692,0.2488,3212.6,3212.5,6.88308937]
[1737606388902,0.2488,3212.6,3212.5,7.43308937]
[1737606389218,0.2488,3212.6,3212.5,10.43308937]
[1737606391086,3.11206,3213.3,3212.7,3.11264]
[1737606391287,3.11193,3213.5,3212.8,3.14365045]
[1737606391483,3.11201,3213.4,3212.8,0.03112045]
[1737606391722,3.11201,3213.4,3212.9,0.8124]
[1737606391916,3.11201,3213.4,3213.0,0.03112021]
[1737606393237,3.11179,3213.6,3213.0,0.03112021]
[1737606393525,3.11141,3214.0,3213.1,2.95444937]
[1737606393726,3.11141,3214.0,3213.2,3.14322607]
[1737606394206,3.11141,3214.0,3213.3,0.8124]
[1737606395508,3.91241,3214.2,3213.4,2.95444937]
[1737606395694,3.1113,3214.1,3213.4,2.98556545]
[1737606395893,3.1113,3214.1,3213.4,3.676573]
[1737606397023,3.11139,3214.0,3213.4,3.64545692]
[1737606397228,3.11139,3214.0,3213.4,0.69100755]
[1737606397441,3.11139,3214.0,3213.3,0.8124]
[1737606398896,0.8217,3214.4,3213.3,0.8124]
[1737606399234,3.11165,3213.8,3213.3,0.8124]
[1737606400404,6.22284,3214.0,3213.3,0.8124]
[1737606400609,3.1115,3213.9,3213.3,0.8124]
[1737606401539,3.11166,3213.8,3213.3,0.8124]
[1737606402805,3.11182,3213.6,3212.7,6.06703937]
[1737606403010,3.11182,3213.6,3212.8,0.8142]
[1737606403323,3.11192,3213.5,3212.8,0.8142]
[1737606403517,3.11208,3213.3,3212.8,0.8142]
[1737606404249,3.11218,3213.2,3212.8,0.8142]
[1737606405148,0.311218,3213.2,3212.6,0.8142]
[1737606405340,3.11207,3213.3,3212.6,0.8142]
[1737606405691,3.11191,3213.5,3212.7,3.14372375]
[1737606405993,3.1113,3214.1,3213.1,3.11222]
[1737606405994,3.11149,3213.9,3213.1,3.11222]
[1737606406160,3.11149,3213.9,3213.1,3.14333879]
[1737606406345,3.11149,3213.9,3213.2,0.69119882]
[1737606406744,3.11138,3214.0,3213.2,3.80329882]
[1737606407048,3.11148,3213.9,3213.2,0.69119882]
[1737606407832,3.11148,3213.9,3213.2,3.80334882]
[1737606408163,3.11148,3213.9,3213.2,0.69119882]
[1737606408365,3.11148,3213.9,3213.1,3.11222]
[1737606408748,3.11159,3213.8,3213.0,0.8142]
[1737606409125,3.11169,3213.7,3213.0,0.8142]
[1737606411091,3.11169,3213.7,3213.0,0.84531963]
[1737606411528,3.11169,3213.7,3213.0,0.8142]
[1737606411726,3.422859,3213.7,3213.0,0.8142]
[1737606412035,3.11185,3213.6,3213.0,0.8142]
[1737606412677,3.422859,3213.7,3213.0,0.8142]
[1737606412678,3.11206,3213.4,3213.0,0.8142]
[1737606412878,3.11206,3213.4,3212.6,0.8142]
[1737606414233,3.11206,3213.4,3212.7,0.03112249]
[1737606414428,3.11207,3213.3,3212.6,1.206901]
[1737606414597,3.11225,3213.2,3212.6,1.206901]
[1737606415595,3.11235,3213.1,3212.6,0.8142]
[1737606415999,3.11253,3212.9,3212.6,0.8142]
[1737606416297,3.11258,3212.8,3212.6,0.8142]
[1737606416494,3.11242,3213.0,3212.6,0.8142]
[1737606416901,3.11245,3212.9,3212.6,0.8142]
[1737606418501,6.22499,3212.9,3212.6,0.8142]
[1737606418803,3.11245,3212.9,3212.6,0.8142]
[1737606419001,3.1127,3212.7,3212.2,0.8142]
[1737606419198,6.536215,3212.9,3212.2,0.8142]
[1737606419514,3.11256,3212.8,3212.2,0.8142]
[1737606420211,3.11265,3212.7,3212.2,0.8142]
[1737606420394,3.11265,3212.7,3211.5,0.6071394]
[1737606420395,3.113,3212.4,3211.6,3.92784]
[1737606420594,3.11275,3212.6,3211.8,3.11348]
[1737606420894,3.11275,3212.6,3211.9,0.8142]
[1737606421094,3.11275,3212.6,3211.9,1.52143214]
[1737606421891,3.11286,3212.5,3211.9,1.52143214]
[1737606422126,3.11294,3212.4,3211.9,0.8142]
[1737606422422,3.11294,3212.4,3211.9,35.8142]
[1737606423737,0.8217,3212.3,3211.6,0.8142]
[1737606423925,3.11361,3211.8,3211.0,3.11429]
[1737606424226,3.11335,3212.0,3211.1,38.53810624]
[1737606424424,3.11314,3212.2,3211.1,38.53810624]
[1737606424425,3.11343,3211.9,3211.1,35.392849]
[1737606424604,3.11343,3211.9,3211.1,38.507029]
[1737606424792,3.11343,3211.9,3211.1,3.507029]
[1737606424994,3.11322,3212.1,3211.2,3.4647729]
[1737606425194,3.11332,3212.0,3211.3,35.7913]
[1737606425596,3.11345,3211.9,3211.3,35.7913]
[1737606425990,3.11345,3211.9,3211.3,0.7913]
[1737606426192,3.1137,3211.7,3211.3,0.7913]
[1737606426414,3.11373,3211.6,3211.3,0.7913]
[1737606426637,3.11394,3211.4,3211.0,0.7913]
[1737606426795,3.11381,3211.5,3211.0,0.7913]
[1737606427193,3.11391,3211.4,3211.0,0.7913]
[1737606428912,3.11371,3211.6,3210.7,35.7913]
[1737606428913,3.11419,3211.1,3210.7,35.7913]
[1737606429356,3.11439,3210.9,3210.7,35.7913]
[1737606429630,3.11459,3210.7,3210.1,0.7913]
[1737606429829,3.1148,3210.5,3210.1,0.7913]
[1737606431547,3.11465,3210.7,3210.1,0.7913]
[1737606431717,0.7924,3211.0,3210.1,3.90646]
[1737606431917,3.1143,3211.0,3210.2,3.505626]
[1737606433343,3.1143,3211.0,3210.2,0.390646]
[1737606433535,3.11449,3210.8,3210.1,0.7913]
[1737606433756,3.11449,3210.8,3210.1,3.90643]
[1737606433950,3.11449,3210.8,3210.1,0.7913]
[1737606434316,3.11465,3210.7,3210.1,0.7913]
[1737606434628,0.7924,3211.3,3209.8,35.7913]
[1737606434629,3.11499,3210.3,3209.8,35.7913]
[1737606434956,3.1152,3210.1,3209.8,35.7913]
[1737606435116,3.1152,3210.1,3209.0,0.7913]
[1737606435117,3.11564,3209.7,3209.0,0.7913]
[1737606435444,3.11565,3209.6,3209.0,0.7913]
[1737606435643,3.11568,3209.6,3209.0,0.7913]
[1737606435850,3.11588,3209.4,3209.0,0.7913]
[1737606436546,3.11568,3209.6,3209.0,0.7913]
[1737606436853,3.90798,3209.7,3209.0,0.7913]
[1737606437216,3.11558,3209.7,3209.0,1.182054]
[1737606437414,3.11549,3209.8,3209.0,4.298264]
[1737606438135,3.90767,3210.0,3209.0,4.298264]
[1737606438352,3.11519,3210.1,3209.2,3.11594]
[1737606438552,3.11528,3210.0,3209.3,0.7913]
[1737606438851,3.11538,3209.9,3209.3,0.7913]
[1737606439052,3.11528,3210.0,3209.3,0.7913]
[1737606439420,3.11507,3210.2,3209.4,0.390724]
[1737606439944,3.11507,3210.2,3209.5,35.0]
[1737606440339,3.11488,3210.4,3209.7,0.7716]
[1737606441053,3.11488,3210.4,3209.8,35.0]
[1737606441354,3.11488,3210.4,3209.8,35.77244633]
[1737606441549,3.11498,3210.3,3209.8,35.77244633]
[1737606441731,3.11498,3210.3,3209.8,35.0]
[1737606442056,3.11547,3209.8,3209.0,3.8878]
[1737606442253,3.11532,3210.0,3209.2,3.11601]
[1737606442463,3.11532,3210.0,3209.3,35.0]
[1737606442756,3.11547,3209.8,3209.3,35.0]
[1737606443074,3.11575,3209.5,3209.0,0.7716]
[1737606443280,3.11545,3209.8,3209.0,0.7716]
[1737606443425,3.11606,3209.2,3208.8,35.0]
[1737606443624,3.11616,3209.1,3208.7,0.7716]
[1737606444366,3.11624,3209.0,3208.4,35.7716]
[1737606444535,3.11651,3208.8,3208.4,0.7716]
[1737606444737,3.11655,3208.7,3208.4,0.7716]
[1737606445061,3.11655,3208.7,3208.1,36.18826667]
[1737606445664,3.11636,3208.9,3208.1,1.18826667]
[1737606445824,3.11643,3208.8,3208.1,1.18826667]
[1737606446159,3.11636,3208.9,3208.1,1.18826667]
[1737606446360,3.11636,3208.9,3208.1,4.30530667]
[1737606446583,3.11616,3209.1,3208.2,3.11701]
[1737606446726,3.11616,3209.1,3208.5,0.7716]
[1737606446926,3.11624,3209.0,3208.5,0.7716]
[1737606447240,3.11604,3209.2,3208.5,3.88831]
[1737606447439,3.11604,3209.2,3208.5,0.7716]
[1737606448060,3.11614,3209.1,3208.5,0.7716]
[1737606448438,3.1166,3208.7,3208.1,1.18826667]
[1737606448624,3.11675,3208.5,3208.1,0.41666667]
[1737606449258,3.11659,3208.7,3208.1,0.41666667]
[1737606449959,3.11665,3208.6,3208.1,0.41666667]
[1737606456061,3.11679,3208.5,3208.1,0.41666667]
[1737606458067,3.740093,3208.5,3208.1,0.41666667]
[1737606461768,3.11682,3208.4,3208.1,0.41666667]
[1737606463638,3.93331,3208.2,3208.1,0.41666667]
[1737606463959,6.93331,3208.2,3208.1,0.41666667]
[1737606464166,3.9336,3207.9,3207.8,0.01]
[1737606464341,4.93412394,3207.9,3207.8,0.01]
[1737606465368,1.00052394,3207.9,3207.8,0.01]
[1737606465557,3.75078953,3208.1,3207.8,0.01]
[1737606466679,3.11723,3208.0,3207.8,0.01]
[1737606467263,3.1173,3207.9,3207.8,0.01]
[1737606478062,3.93321,3208.3,3207.8,0.01]
[1737606478063,3.11691,3208.3,3207.8,0.01]
[1737606478684,3.11715,3208.1,3207.8,0.01]
[1737606478895,3.11728,3208.0,3207.8,0.01]
[1737606479596,3.1173,3207.9,3207.8,0.01]
[1737606481876,3.11728,3208.0,3207.8,0.01]
[1737606482199,3.11697,3208.3,3207.9,0.761]
[1737606482400,3.80122276,3208.3,3207.9,0.761]
[1737606482970,3.11682,3208.4,3207.9,0.761]
[1737606483307,3.11652,3208.7,3208.0,3.11712]
[1737606483471,3.11652,3208.7,3208.1,3.11707]
[1737606483879,3.11634,3208.9,3208.3,0.761]
[1737606484080,3.11598,3209.3,3208.7,0.761]
[1737606484280,3.11614,3209.1,3208.7,0.761]
[1737606484575,3.1164,3208.9,3208.2,0.761]
[1737606484897,3.11654,3208.7,3208.2,0.761]
[1737606485292,3.11671,3208.6,3208.2,0.761]
[1737606485592,3.11677,3208.5,3208.2,0.761]
[1737606485799,3.740101,3208.5,3208.2,0.761]
[1737606486093,3.11683,3208.4,3208.2,0.761]
[1737606486268,0.623331,3208.5,3208.2,0.761]
[1737606486475,3.11664,3208.6,3208.2,0.761]
[1737606486674,3.11672,3208.5,3208.2,0.761]
[1737606487092,3.11673,3208.5,3208.2,0.761]
[1737606487622,0.2504,3208.3,3208.2,0.761]
[1737606491528,3.36731,3208.3,3207.9,0.8051]
[1737606491678,3.1172,3208.0,3207.8,0.01]
[1737606491880,3.1173,3207.9,3207.8,0.01]
[1737606493613,3.892,3207.9,3207.8,0.01]
[1737606493996,3.1173,3207.9,3207.8,0.01]
[1737606496035,3.11723,3208.0,3207.8,0.01]
[1737606496188,0.37252114,3207.9,3207.8,0.01]
[1737606496390,3.48982114,3207.9,3207.8,0.01]
[1737606497526,3.11715,3208.1,3207.8,0.01]
[1737606497745,3.36731,3208.3,3207.9,0.8051]
[1737606498059,3.36731,3208.3,3207.9,35.8051]
[1737606498360,3.11702,3208.2,3207.9,0.8051]
[1737606498503,3.11702,3208.2,3207.8,0.01]
[1737606498869,0.4423566,3208.1,3207.8,0.01]
[1737606503242,3.36731,3208.3,3207.8,0.01]
[1737606503728,3.11702,3208.2,3207.8,0.01]
[1737606503930,3.36731,3208.3,3207.8,0.01]
[1737606504382,6.48431,3208.3,3207.8,0.01]
[1737606504529,3.11709,3208.2,3207.8,0.01]
[1737606504730,0.64844,3208.1,3207.8,0.01]
[1737606506981,3.11727,3208.0,3207.8,0.01]
[1737606507184,3.1173,3207.9,3207.8,0.01]
[1737606508549,3.917,3207.9,3207.8,0.01]
[1737606508742,5.29241894,3207.9,3207.8,0.01]
[1737606512080,8.29241894,3207.9,3207.8,0.01]
[1737606512284,8.84241894,3207.9,3207.8,0.01]
[1737606512633,8.29241894,3207.9,3207.8,0.01]
[1737606513885,4.49271894,3207.9,3207.8,0.01]
[1737606515279,7.49271894,3207.9,3207.8,0.01]
[1737606515481,8.82151894,3207.9,3207.8,0.01]